bitfinex/quotes_SOLUSD_20250922
["timestamp","ask_amount","ask_price","bid_price","bid_amount"]
[1758529246284,4.49054739,222.69,222.63,80.6]
[1758529246478,0.72,222.68,222.63,80.6]
[1758529246797,0.72,222.67,222.63,80.6]
[1758529247401,31.2,222.68,222.63,80.6]
[1758529247606,31.92,222.66,222.59,80.6]
[1758529248503,36.4112041,222.66,222.6,4.49235943]
[1758529248803,31.2,222.64,222.59,80.6]
[1758529249103,0.72,222.63,222.59,80.6]
[1758529249295,0.72,222.62,222.59,80.6]
[1758529249891,0.72,222.61,222.59,80.6]
[1758529250202,31.2,222.63,222.59,80.6]
[1758529250408,31.2,222.62,222.59,80.6]
[1758529250991,31.2,222.62,222.57,85.09294206]
[1758529251607,31.2,222.62,222.57,85.79294206]
[1758529252705,31.2,222.63,222.57,85.79294206]
[1758529252903,31.2,222.62,222.57,85.79294206]
[1758529253583,31.2,222.63,222.57,97.02536332]
[1758529253907,31.2,222.63,222.58,0.7]
[1758529254203,31.92,222.65,222.59,0.7]
[1758529254399,2.98312577,222.64,222.57,101.60971602]
[1758529254581,2.98312577,222.64,222.56,0.7]
[1758529254582,0.72,222.63,222.56,85.09316938]
[1758529255088,31.2,222.61,222.56,85.09316938]
[1758529255419,13.5083414,222.73,222.57,5.9843527]
[1758529255577,31.2,222.68,222.58,0.7]
[1758529255778,3.70317267,222.67,222.58,0.7]
[1758529256316,3.70317267,222.67,222.57,80.6]
[1758529256488,31.2,222.63,222.57,85.0928112]
[1758529257022,0.72,222.64,222.57,85.0928112]
[1758529257182,0.69,222.63,222.55,80.6]
[1758529257384,0.69,222.62,222.55,80.6]
[1758529257687,0.69,222.61,222.52,85.81378317]
[1758529257887,0.69,222.61,222.53,0.72]
[1758529258706,31.2,222.59,222.54,4.49357418]
[1758529258912,31.2,222.59,222.55,0.72]
[1758529260304,31.2,222.59,222.53,5.21377612]
[1758529260703,0.69,222.58,222.52,80.6]
[1758529260998,0.69,222.57,222.52,80.6]
[1758529261202,0.69,222.6,222.52,85.81389191]
[1758529261511,31.89,222.6,222.52,85.81389191]
[1758529261807,31.2,222.6,222.52,85.09389191]
[1758529261998,0.69,222.59,222.52,85.09389191]
[1758529262395,31.2,222.56,222.52,85.09389191]
[1758529263311,0.69,222.59,222.52,85.09389191]
[1758529263487,5.18258796,222.59,222.52,85.09389191]
[1758529263815,11.22939406,222.63,222.52,85.09389191]
[1758529263816,0.69,222.63,222.54,5.2843527]
[1758529264113,31.2,222.62,222.55,0.72]
[1758529264489,0.69,222.63,222.56,4.49317038]
[1758529264689,31.2,222.6,222.56,4.49317038]
[1758529264896,31.2,222.6,222.56,5.21317038]
[1758529265917,31.2,222.65,222.57,0.72]
[1758529266214,0.66,222.66,222.58,5.2843527]
[1758529266415,31.2,222.66,222.6,5.2843527]
[1758529266606,0.66,222.69,222.62,5.2843527]
[1758529267016,4.21486248,222.71,222.64,5.2843527]
[1758529267236,3.73131591,222.78,222.66,5.2843527]
[1758529267237,2.98592051,222.72,222.66,5.2843527]
[1758529267526,13.5083414,222.73,222.69,5.2843527]
[1758529267686,0.66,222.77,222.69,5.2843527]
[1758529267892,0.66,222.77,222.69,6.0043527]
[1758529268199,31.2,222.74,222.69,6.0043527]
[1758529268398,0.66,222.74,222.66,0.72]
[1758529268601,31.2,222.74,222.67,5.2843527]
[1758529269107,31.2,222.74,222.68,4.505]
[1758529269304,0.66,222.75,222.67,5.2843527]
[1758529269502,0.66,222.75,222.68,0.72]
[1758529269810,31.2,222.74,222.71,5.2843527]
[1758529270220,0.66,222.78,222.71,5.2843527]
[1758529270616,31.2,222.77,222.72,4.48994252]
[1758529270822,31.86,222.77,222.72,4.48994252]
[1758529271304,31.2,222.77,222.72,5.20994252]
[1758529271624,31.86,222.77,222.72,4.48994252]
[1758529272431,31.86,222.77,222.72,85.08994252]
[1758529272631,0.66,222.76,222.72,80.6]
[1758529272829,31.86,222.75,222.72,80.6]
[1758529273034,0.66,222.74,222.72,80.6]
[1758529273726,0.66,222.73,222.72,80.6]
[1758529273928,31.2,222.75,222.68,80.6]
[1758529274119,0.66,222.73,222.68,80.6]
[1758529274316,0.66,222.73,222.64,4.49155587]
[1758529274518,31.2,222.7,222.64,85.09155587]
[1758529275123,0.66,222.71,222.64,85.09155587]
[1758529275643,31.86,222.7,222.6,80.6]
[1758529275823,3.65041468,222.69,222.59,4.49237414]
[1758529276014,0.66,222.68,222.59,4.49237414]
[1758529276337,0.66,222.67,222.55,11.95321183]
[1758529276522,31.2,222.64,222.56,4.49317038]
[1758529276715,31.86,222.63,222.55,5.21336276]
[1758529276923,31.2,222.63,222.56,0.72]
[1758529277431,0.66,222.65,222.56,0.72]
[1758529277737,31.86,222.65,222.56,6.0043527]
[1758529277910,2.99111343,222.64,222.56,6.0043527]
[1758529278108,34.19111652,222.64,222.57,5.2843527]
[1758529278313,31.2,222.68,222.63,5.2843527]
[1758529278510,31.2,222.68,222.65,4.49135414]
[1758529278824,0.66,222.72,222.67,5.2843527]
[1758529279024,0.66,222.71,222.64,5.2843527]
[1758529279237,31.2,222.71,222.62,6.0043527]
[1758529279433,3.65232622,222.7,222.62,6.0043527]
[1758529279634,3.65232622,222.7,222.62,0.72]
[1758529279821,3.65232622,222.7,222.62,6.0043527]
[1758529280018,3.65232622,222.7,222.62,0.72]
[1758529280238,31.2,222.67,222.63,4.49175762]
[1758529280437,31.2,222.67,222.58,0.72]
[1758529280438,3.65299467,222.66,222.58,0.72]
[1758529280615,3.65299467,222.66,222.56,6.0043527]
[1758529281711,3.65299467,222.66,222.56,17.23696285]
[1758529281914,31.2,222.63,222.56,17.23696285]
[1758529282949,31.2,222.63,222.56,97.04578053]
[1758529283934,31.2,222.61,222.56,97.04578053]
[1758529284139,31.86,222.67,222.57,6.0043527]
[1758529284324,2.99414873,222.66,222.57,86.6043527]
[1758529284649,2.99414873,222.66,222.58,6.0043527]
[1758529284818,3.65414873,222.67,222.58,0.72]
[1758529285250,3.65414873,222.67,222.57,80.6]
[1758529285424,0.66,222.66,222.57,80.6]
[1758529285934,0.66,222.66,222.58,4.49276664]
[1758529286235,5.15126736,222.66,222.58,4.49276664]
[1758529286451,0.66,222.65,222.58,4.49276664]
[1758529286627,31.2,222.63,222.57,80.6]
[1758529286826,0.66,222.62,222.57,80.6]
[1758529287037,35.69126736,222.66,222.57,85.0929584]
[1758529287347,0.68,222.62,222.57,85.0929584]
[1758529287642,2.99515865,222.63,222.58,0.67]
[1758529287944,34.19515865,222.64,222.6,4.49236298]
[1758529288120,13.51077484,222.68,222.63,5.2843527]
[1758529288321,0.68,222.72,222.67,5.2843527]
[1758529288518,0.68,222.72,222.67,8.31806961]
[1758529288519,31.2,222.72,222.67,8.31806961]
[1758529288722,2.99645809,222.71,222.67,8.31806961]
[1758529289144,31.2,222.74,222.68,7.64806961]
[1758529289440,13.50469288,222.78,222.67,0.67]
[1758529289441,2.99645809,222.73,222.71,7.64806961]
[1758529289644,31.2,222.76,222.71,7.64806961]
[1758529289829,2.99645809,222.75,222.71,8.31806961]
[1758529290039,2.99645809,222.75,222.72,12.80801213]
[1758529290343,31.2,222.77,222.72,12.80801213]
[1758529290526,3.67645809,222.76,222.68,16.38762169]
[1758529290726,3.67645809,222.76,222.69,7.64806961]
[1758529290939,3.67645809,222.76,222.68,5.16074905]
[1758529291138,3.67645809,222.76,222.68,12.80881866]
[1758529291352,31.2,222.75,222.68,12.80881866]
[1758529291642,2.99645809,222.74,222.68,5.16074905]
[1758529291858,2.99645809,222.74,222.69,7.64806961]
[1758529292025,2.99645809,222.74,222.7,0.67]
[1758529292228,0.78,222.79,222.71,0.67]
[1758529292527,31.2,222.76,222.7,0.67]
[1758529293119,31.2,222.76,222.7,8.31806961]
[1758529293356,31.2,222.76,222.7,88.91806961]
[1758529293929,0.78,222.79,222.72,7.64806961]
[1758529294126,0.1,222.79,222.74,7.64806961]
[1758529294341,0.1,222.79,222.74,0.67]
[1758529294545,0.1,222.79,222.72,88.91806961]
[1758529294765,0.1,222.79,222.72,81.27]
[1758529295133,0.1,222.79,222.73,8.31806961]
[1758529296040,0.1,222.79,222.74,4.48953937]
[1758529296229,0.1,222.79,222.74,5.15953937]
[1758529296442,0.1,222.79,222.75,0.67]
[1758529297326,0.1,222.79,222.76,4.48913629]
[1758529298426,0.1,222.79,222.76,5.15913629]
[1758529298628,0.1,222.79,222.76,4.48913629]
[1758529300937,0.1,222.79,222.76,85.08913629]
[1758529301947,0.1,222.79,222.77,0.67]
[1758529302289,0.1,222.79,222.78,12.80680288]
[1758529302643,0.1,222.79,222.78,93.40680288]
[1758529303347,0.1,222.88,222.79,80.5]
[1758529303547,0.1,222.88,222.8,7.64806961]
[1758529303746,31.3,222.88,222.82,7.64806961]
[1758529304046,0.1,222.88,222.83,4.505]
[1758529304359,0.78,222.88,222.83,4.48772606]
[1758529304558,0.1,222.88,222.84,0.67]
[1758529304757,2.09071044,222.91,222.84,88.81806961]
[1758529305150,0.68,222.9,222.84,80.5]
[1758529306171,35.68678692,222.88,222.84,80.5]
[1758529306367,0.68,222.87,222.84,80.5]
[1758529306871,0.68,222.86,222.84,80.5]
[1758529308071,31.2,222.86,222.84,80.5]
[1758529308366,0.68,222.85,222.84,80.5]
[1758529308765,0.68,222.85,222.8,80.5]
[1758529308968,31.2,222.83,222.77,80.5]
[1758529309668,0.68,222.82,222.72,80.5]
[1758529309851,31.2,222.81,222.73,4.48974094]
[1758529310047,31.2,222.81,222.74,8.31806961]
[1758529310271,31.2,222.81,222.75,8.31806961]
[1758529310552,0.68,222.84,222.75,0.67]
[1758529311279,0.68,222.84,222.73,23.3621629]
[1758529311486,0.68,222.83,222.73,24.0321629]
[1758529311849,0.68,222.83,222.74,8.31806961]
[1758529312049,31.2,222.82,222.74,7.64806961]
[1758529312297,31.2,222.82,222.75,0.67]
[1758529313894,31.2,222.82,222.76,15.71197701]
[1758529315292,0.68,222.83,222.76,15.71197701]
[1758529315481,31.88,222.83,222.76,15.71197701]
[1758529315682,31.88,222.83,222.76,16.38197701]
[1758529315891,0.68,222.83,222.76,16.38197701]
[1758529317403,31.87,222.82,222.74,4.48935964]
[1758529317695,31.87,222.81,222.74,84.98935964]
[1758529317997,0.67,222.8,222.74,84.98935964]
[1758529318300,0.67,222.79,222.73,4.48972113]
[1758529318594,2.9868286,222.8,222.73,4.48972113]
[1758529318595,0.67,222.78,222.73,84.98972113]
[1758529318798,2.9868286,222.8,222.73,84.98972113]
[1758529318799,0.67,222.77,222.73,84.98972113]
[1758529318980,0.67,222.76,222.73,84.98972113]
[1758529319292,31.87,222.76,222.73,84.98972113]
[1758529320080,0.67,222.78,222.73,84.98972113]
[1758529320884,0.67,222.78,222.73,85.65972113]
[1758529321082,36.35910265,222.77,222.68,11.22649622]
[1758529321284,31.2,222.74,222.65,4.49130327]
[1758529321675,0.67,222.73,222.65,4.49130327]
[1758529321890,31.87,222.72,222.65,15.71968862]
[1758529322495,0.67,222.72,222.65,15.71968862]
[1758529323015,0.67,222.71,222.62,0.67]
[1758529323206,31.2,222.68,222.59,15.72371761]
[1758529323375,31.87,222.67,222.59,4.4925648]
[1758529323899,0.67,222.66,222.59,4.4925648]
[1758529325216,0.67,222.66,222.59,15.72397681]
[1758529325384,0.67,222.66,222.59,4.4925648]
[1758529325590,0.67,222.65,222.59,4.4925648]
[1758529325804,4.20446746,222.65,222.59,4.4925648]
[1758529326009,0.67,222.65,222.59,4.4925648]
[1758529327308,31.87,222.65,222.58,4.49276664]
[1758529327481,0.67,222.65,222.58,4.49276664]
[1758529327989,4.21925451,222.65,222.58,4.49276664]
[1758529328308,0.67,222.65,222.58,84.99276664]
[1758529329096,31.87,222.67,222.59,0.67]
[1758529329296,4.25656392,222.67,222.6,4.49236298]
[1758529329504,31.2,222.66,222.6,4.49236298]
[1758529330212,4.25656392,222.67,222.58,11.23191661]
[1758529330213,0.67,222.65,222.58,4.49258651]
[1758529330414,0.67,222.64,222.58,4.49258651]
[1758529330811,0.67,222.64,222.57,80.5]
[1758529330812,0.67,222.63,222.57,80.5]
[1758529331007,0.67,222.62,222.52,11.43470508]
[1758529331316,31.2,222.58,222.53,4.49361937]
[1758529331519,31.2,222.58,222.53,5.16361937]
[1758529332406,31.2,222.6,222.52,0.2]
[1758529332600,0.69,222.58,222.52,0.2]
[1758529332931,31.89,222.58,222.52,0.2]
[1758529333108,2.98495842,222.57,222.52,0.2]
[1758529333426,31.2,222.53,222.52,0.2]
[1758529333626,31.89,222.53,222.52,0.2]
[1758529333830,31.89,222.53,222.47,0.2]
[1758529334220,2.9810348,222.52,222.47,0.2]
[1758529334518,0.69,222.51,222.47,0.2]
[1758529335201,31.2,222.48,222.47,0.2]
[1758529335401,0.69,222.48,222.47,0.2]
[1758529336000,31.2,222.5,222.47,0.2]
[1758529336211,31.2,222.5,222.47,4.69491195]
[1758529336412,0.69,222.55,222.48,8.36806961]
[1758529336634,0.69,222.55,222.48,0.72]
[1758529337045,0.69,222.57,222.48,0.72]
[1758529337245,31.2,222.55,222.48,0.72]
[1758529337822,31.89,222.55,222.48,0.72]
[1758529338042,31.89,222.55,222.48,5.2147384]
[1758529338913,0.69,222.55,222.48,16.45170352]
[1758529339110,0.69,222.55,222.48,85.0947384]
[1758529340024,0.69,222.55,222.47,0.2]
[1758529340025,0.69,222.54,222.47,0.2]
[1758529340631,3.65428229,222.54,222.47,0.2]
[1758529341031,31.2,222.52,222.47,0.2]
[1758529341240,0.69,222.51,222.47,0.2]
[1758529342021,31.2,222.48,222.47,0.2]
[1758529342220,31.89,222.48,222.47,0.2]
[1758529344243,36.38478604,222.48,222.47,0.2]
[1758529344962,0.69,222.48,222.47,0.2]
[1758529345643,5.18478604,222.48,222.47,0.2]
[1758529347032,31.2,222.48,222.47,0.2]
[1758529347546,31.2,222.49,222.47,0.2]
[1758529348045,4.49437136,222.51,222.47,0.2]
[1758529348249,31.2,222.49,222.47,0.2]
[1758529348933,31.87,222.52,222.47,0.2]
[1758529349443,0.67,222.51,222.47,0.2]
[1758529349642,31.87,222.51,222.47,0.2]
[1758529349937,31.2,222.51,222.47,0.2]
[1758529350141,31.2,222.49,222.47,0.2]
[1758529350347,35.69460978,222.49,222.47,0.2]
[1758529350528,0.67,222.48,222.47,0.2]
[1758529351033,0.67,222.48,222.47,0.13243245]
[1758529351932,31.87,222.48,222.47,0.13243245]
[1758529352140,31.2,222.48,222.47,0.13243245]
[1758529352322,0.67,222.51,222.47,0.13243245]
[1758529352323,31.2,222.49,222.47,0.13243245]
[1758529352642,0.67,222.48,222.47,0.13243245]
[1758529353034,31.87,222.5,222.47,0.13243245]
[1758529353557,0.67,222.49,222.47,0.13243245]
[1758529354338,4.49478604,222.48,222.47,0.13243245]
[1758529354722,5.16478604,222.48,222.47,0.13243245]
[1758529354922,4.49478604,222.48,222.47,0.13243245]
[1758529355334,5.16478604,222.48,222.47,0.13243245]
[1758529357744,10.32957208,222.48,222.47,0.13243245]
[1758529358041,13.28963689,222.48,222.47,0.13243245]
[1758529359732,10.32957208,222.48,222.47,0.13243245]
[1758529360434,13.29511096,222.48,222.47,0.13243245]
[1758529364539,7.46032492,222.48,222.47,0.13243245]
[1758529364753,5.16478604,222.48,222.47,0.13243245]
[1758529365155,4.49478604,222.48,222.47,0.13243245]
[1758529366058,4.49458402,222.49,222.47,0.13243245]
[1758529366250,0.67,222.48,222.47,0.13243245]
[1758529367074,4.49458402,222.49,222.47,0.13243245]
[1758529368152,5.16458402,222.49,222.47,0.13243245]
[1758529369967,5.16458402,222.49,222.42,0.2]
[1758529369968,0.67,222.48,222.42,0.2]
[1758529370165,23.63553888,222.48,222.42,0.2]
[1758529370371,2.96553888,222.47,222.42,0.2]
[1758529370554,0.67,222.46,222.42,0.2]
[1758529370761,20.0,222.45,222.42,1e-08]
[1758529370949,2.96553888,222.44,222.36,0.2]
[1758529371149,27.36685479,222.43,222.36,0.2]
[1758529371456,20.0,222.41,222.36,0.2]
[1758529371658,2.96553888,222.4,222.36,1e-08]
[1758529371865,3.63553888,222.4,222.36,1e-08]
[1758529372058,18.21247975,222.39,222.36,1e-08]
[1758529372263,2.96553888,222.38,222.36,1e-08]
[1758529373976,4.49700948,222.37,222.36,1e-08]
[1758529374187,7.46238582,222.38,222.37,0.71]
[1758529374359,11.24022106,222.42,222.37,0.71]
[1758529374360,2.96553888,222.41,222.37,0.71]
[1758529374551,9.26572784,222.41,222.38,0.71]
[1758529374752,7.46193536,222.41,222.36,1e-08]
[1758529374949,7.46193536,222.41,222.39,0.71]
[1758529375278,7.46173959,222.41,222.4,0.71]
[1758529375455,4.49620071,222.41,222.4,0.71]
[1758529376274,4.49599856,222.42,222.4,0.71]
[1758529376653,7.46124874,222.44,222.4,0.71]
[1758529377280,2.96553888,222.44,222.41,0.66]
[1758529377577,2.96553888,222.45,222.41,0.66]
[1758529377757,7.46053793,222.47,222.41,0.66]
[1758529378079,2.96553888,222.46,222.41,0.66]
[1758529378266,2.96553888,222.45,222.41,0.66]
[1758529378465,4.49551562,222.45,222.41,0.66]
[1758529378661,7.46071708,222.47,222.41,0.66]
[1758529378860,2.96553888,222.46,222.42,4.49599856]
[1758529379067,2.96553888,222.48,222.43,0.66]
[1758529379260,2.96553888,222.47,222.44,0.66]
[1758529379459,2.96553888,222.46,222.45,0.66]
[1758529379668,7.46041871,222.48,222.43,0.66]
[1758529379869,2.96553888,222.47,222.43,0.66]
[1758529380069,2.96553888,222.46,222.44,0.66]
[1758529380272,4.49487983,222.48,222.45,0.66]
[1758529380273,2.96553888,222.47,222.45,0.66]
[1758529380659,2.96553888,222.47,222.42,0.66]
[1758529380882,2.96553888,222.46,222.42,0.66]
[1758529381078,2.96553888,222.46,222.38,4.49664232]
[1758529381079,2.96553888,222.47,222.43,0.66]
[1758529381283,2.96553888,222.48,222.43,0.66]
[1758529381587,2.96553888,222.52,222.43,0.66]
[1758529381755,2.96553888,222.55,222.43,0.66]
[1758529381956,7.45911373,222.54,222.43,0.66]
[1758529382161,2.96553888,222.53,222.43,5.95959358]
[1758529382376,2.96553888,222.55,222.44,16.3945801]
[1758529382574,2.96553888,222.54,222.45,0.66]
[1758529382780,2.96553888,222.53,222.45,0.66]
[1758529382983,2.96553888,222.52,222.41,0.66]
[1758529383161,6.69685479,222.51,222.41,0.66]
[1758529383483,6.69685479,222.51,222.36,1e-08]
[1758529383484,3.73131591,222.49,222.38,0.66]
[1758529383674,3.67553888,222.48,222.38,0.66]
[1758529383867,2.96553888,222.47,222.38,0.66]
[1758529384073,2.96553888,222.46,222.38,0.66]
[1758529384276,4.49519014,222.46,222.39,4.49660506]
[1758529384489,7.46072902,222.46,222.4,0.66]
[1758529384783,2.96553888,222.45,222.4,0.66]
[1758529384987,4.49519014,222.46,222.4,0.66]
[1758529385283,7.46072902,222.46,222.4,0.66]
[1758529385486,4.49519014,222.46,222.4,0.66]
[1758529385690,7.46072902,222.46,222.4,0.66]
[1758529385892,4.49519014,222.46,222.4,0.66]
[1758529386091,7.46072902,222.46,222.4,0.66]
[1758529386689,7.46072902,222.46,222.37,0.66]
[1758529386870,3.67553888,222.45,222.36,1e-08]
[1758529387072,2.96553888,222.44,222.36,1e-08]
[1758529387273,6.69685479,222.43,222.36,1e-08]
[1758529387480,2.96553888,222.42,222.36,1e-08]
[1758529387673,2.96553888,222.41,222.36,1e-08]
[1758529387874,18.70294894,222.4,222.36,1e-08]
[1758529388170,2.96553888,222.39,222.36,1e-08]
[1758529388367,2.96553888,222.38,222.36,1e-08]
[1758529388565,3.67553888,222.38,222.36,1e-08]
[1758529388865,15.73741006,222.4,222.36,1e-08]
[1758529388866,0.71,222.37,222.36,1e-08]
[1758529389778,8.17254836,222.37,222.36,1e-08]
[1758529390092,5.20700948,222.37,222.36,1e-08]
[1758529390678,4.49700948,222.37,222.36,1e-08]
[1758529390897,2.96553888,222.39,222.36,1e-08]
[1758529391193,4.49599856,222.42,222.36,0.66000001]
[1758529391402,2.96553888,222.41,222.36,0.66000001]
[1758529391568,2.96553888,222.43,222.36,0.66000001]
[1758529391893,7.46094616,222.45,222.37,4.49700948]
[1758529392188,2.96553888,222.44,222.38,0.66]
[1758529392875,0.69,222.43,222.36,1e-08]
[1758529393076,3.65553888,222.43,222.36,1e-08]
[1758529393290,2.96553888,222.42,222.36,1e-08]
[1758529393498,2.96553888,222.41,222.36,1e-08]
[1758529393799,2.96553888,222.4,222.36,1e-08]
[1758529393970,4.49660506,222.39,222.36,1e-08]
[1758529394174,8.15214394,222.39,222.36,1e-08]
[1758529394371,3.65553888,222.38,222.36,1e-08]
[1758529394901,0.69,222.37,222.36,1e-08]
[1758529395081,2.96553888,222.38,222.36,1e-08]
[1758529395282,3.65553888,222.38,222.36,1e-08]
[1758529395496,2.96553888,222.38,222.36,1e-08]
[1758529395699,4.49660506,222.39,222.36,1e-08]
[1758529395995,2.96553888,222.39,222.36,0.66000001]
[1758529396607,7.46214845,222.39,222.36,1e-08]
[1758529396904,3.65553888,222.38,222.36,1e-08]
[1758529397112,2.96553888,222.37,222.36,1e-08]
[1758529397481,0.69,222.37,222.36,1e-08]
[1758529397683,3.65553888,222.37,222.36,1e-08]
[1758529397882,0.69,222.37,222.36,1e-08]
[1758529398082,7.46254836,222.37,222.36,1e-08]
[1758529398289,4.49700948,222.37,222.36,1e-08]
[1758529398590,7.46254836,222.37,222.36,1e-08]
[1758529398793,4.49700948,222.37,222.36,1e-08]
[1758529398999,2.96553888,222.38,222.36,1e-08]
[1758529399290,2.96553888,222.39,222.36,1e-08]
[1758529399514,0.69,222.4,222.36,1e-08]
[1758529399515,7.46237502,222.38,222.36,1e-08]
[1758529399720,5.18683614,222.38,222.36,1e-08]
[1758529400034,7.46254836,222.37,222.36,1e-08]
[1758529400487,8.15254836,222.37,222.36,1e-08]
[1758529400693,5.18700948,222.37,222.36,1e-08]
[1758529401202,8.15254836,222.37,222.36,1e-08]
[1758529401908,11.88386427,222.37,222.36,1e-08]
[1758529404798,8.15254836,222.37,222.36,1e-08]
[1758529404999,5.18700948,222.37,222.36,1e-08]
[1758529405312,7.46254836,222.37,222.36,1e-08]
[1758529405497,5.18700948,222.37,222.36,1e-08]
[1758529407313,5.21700948,222.37,222.36,1e-08]
[1758529410012,8.18254836,222.37,222.36,1e-08]
[1758529410402,11.91386427,222.37,222.36,1e-08]
[1758529410717,8.18254836,222.37,222.36,1e-08]
[1758529410917,19.42507208,222.37,222.33,0.2]
[1758529411116,7.96565296,222.36,222.29,0.2]
[1758529411307,3.74159321,222.32,222.29,0.2]
[1758529411508,2.96553888,222.31,222.29,0.2]
[1758529411704,2.96553888,222.3,222.29,0.2]
[1758529412010,8.18396443,222.3,222.29,0.2]
[1758529412204,5.21842555,222.3,222.29,0.2]
[1758529412408,8.18396443,222.3,222.29,0.2]
[1758529412719,5.21842555,222.3,222.29,0.2]
[1758529412898,8.18396443,222.3,222.29,0.2]
[1758529413099,8.84338456,222.3,222.29,0.2]
[1758529413295,11.80892344,222.3,222.29,0.2]
[1758529413812,2.96553888,222.3,222.29,0.92]
[1758529414120,4.49786107,222.33,222.29,0.92]
[1758529414317,4.49786107,222.33,222.3,0.72]
[1758529414515,8.18569944,222.33,222.3,0.72]
[1758529415020,8.18569944,222.33,222.29,0.2]
[1758529415201,8.18569944,222.33,222.29,0.92]
[1758529415517,11.15123832,222.33,222.29,0.92]
[1758529415718,2.96553888,222.32,222.29,0.92]
[1758529416319,2.96553888,222.32,222.3,0.72]
[1758529416508,4.49786107,222.33,222.3,0.72]
[1758529417005,8.16253494,222.33,222.29,0.2]
[1758529418005,8.16253494,222.33,222.29,0.92]
[1758529418404,8.16253494,222.33,222.3,0.72]
[1758529418818,8.16253494,222.33,222.29,0.2]
[1758529419106,0.72,222.32,222.29,0.2]
[1758529419301,3.68553888,222.32,222.29,0.2]
[1758529420432,4.4982232,222.31,222.29,0.2]
[1758529421422,0.72,222.3,222.29,0.2]
[1758529423031,3.68553888,222.3,222.29,0.2]
[1758529423234,0.72,222.3,222.29,0.2]
[1758529423620,5.21842555,222.3,222.29,0.2]
[1758529424527,8.18396443,222.3,222.29,0.2]
[1758529424828,5.21842555,222.3,222.29,0.2]
[1758529425128,8.18396443,222.3,222.29,0.2]
[1758529425320,5.21842555,222.3,222.29,0.2]
[1758529425521,19.4300283,222.3,222.26,0.2]
[1758529425717,2.96553888,222.29,222.26,0.2]
[1758529426124,0.72,222.28,222.26,0.2]
[1758529426329,2.96553888,222.29,222.26,0.2]
[1758529426523,0.72,222.27,222.26,0.2]
[1758529427820,5.2190327,222.27,222.26,0.2]
[1758529430338,8.18457158,222.27,222.26,0.2]
[1758529430517,5.2190327,222.27,222.26,0.2]
[1758529430921,8.18457158,222.27,222.26,0.2]
[1758529431138,5.2190327,222.27,222.26,0.2]
[1758529431623,8.18457158,222.27,222.26,0.2]
[1758529431823,5.2190327,222.27,222.26,0.2]
[1758529432013,2.96553888,222.27,222.26,0.2]
[1758529432218,4.49883744,222.28,222.26,0.92]
[1758529432625,4.49883744,222.28,222.26,0.2]
[1758529432820,5.21883744,222.28,222.26,0.2]
[1758529433225,8.18437632,222.28,222.26,0.2]
[1758529434535,7.46437632,222.28,222.26,0.2]
[1758529435333,2.96553888,222.28,222.27,0.72]
[1758529435531,4.49863214,222.29,222.27,0.72]
[1758529435732,7.46417102,222.29,222.27,0.72]
[1758529435929,4.49863214,222.29,222.27,0.72]
[1758529436132,0.72,222.29,222.26,0.2]
[1758529436325,2.96553888,222.28,222.26,0.2]
[1758529436931,2.96553888,222.29,222.26,0.9]
[1758529437242,2.96553888,222.28,222.26,0.9]
[1758529437452,2.96553888,222.27,222.26,0.2]
[1758529437647,3.64553888,222.29,222.26,0.2]
[1758529437818,2.96553888,222.28,222.26,0.2]
[1758529438026,2.96553888,222.27,222.26,0.2]